fUST/lending_fUST_20250204
["ID","MTS","AMOUNT","RATE_DAILY","PERIOD"]
[351546058,1738620645603,-1526.22,0.00016438,2]
[351546059,1738620645612,-500.0,0.00016438,2]
[351546060,1738620645621,-353.73561187,0.00016438,2]
[351546061,1738620645633,-4144.08,0.00016438,2]
[351546062,1738620645643,-18164.1,0.00016438,2]
[351546063,1738620645652,-253.01218903,0.00016438,2]
[351546064,1738620645662,-501.45352918,0.00016438,2]
[351546065,1738620645672,-503.01978408,0.00016438,2]
[351546066,1738620645682,-500.0,0.00016438,2]
[351546067,1738620645692,-500.0,0.00016438,2]
[351546068,1738620645701,-501.24394467,0.00016438,2]
[351546069,1738620645711,-500.0,0.00016438,2]
[351546070,1738620645720,-7481.14,0.00016438,2]
[351546071,1738620645730,-500.0,0.00016438,2]
[351546072,1738620645739,-500.0,0.00016438,2]
[351546073,1738620645748,-500.0,0.00016438,2]
[351546074,1738620645759,-899.9,0.00016438,2]
[351546075,1738620645769,-500.0,0.00016438,2]
[351546076,1738620645779,-151.0,0.00016438,2]
[351546077,1738620645790,-152.675225,0.00016438,2]
[351546078,1738620645800,-500.0,0.00016438,2]
[351546079,1738620645810,-500.0,0.00016438,2]
[351546080,1738620645819,-500.0,0.00016438,2]
[351546081,1738620645828,-1070.01,0.00016438,2]
[351546082,1738620645837,-151.0,0.00016438,2]
[351546083,1738620645846,-488.20914429,0.00016475,2]
[351546084,1738620645856,-500.0,0.00016497,2]
[351546085,1738620645865,-255.06788783,0.00016497,2]
[351546086,1738620645875,-500.0,0.00016497,2]
[351546087,1738620645885,-583.24060089,0.00016497,2]
[351546088,1738620645894,-500.0,0.00016497,2]
[351546089,1738620645904,-500.0,0.00016497,2]
[351546090,1738620645913,-500.0,0.00016497,2]
[351546091,1738620645923,-500.0,0.00016497,2]
[351546092,1738620645934,-30005.86408092,0.00016498,5]
[351546093,1738620645944,-1396.72,0.00016498,2]
[351546094,1738620645955,-1396.72,0.00016498,2]
[351546095,1738620645964,-130848.37419801,0.00016498,5]
[351546096,1738620645974,-1396.72,0.00016499,2]
[351546097,1738620645984,-19179.2,0.000165,2]
[351546098,1738620645994,-151.0,0.000165,2]
[351546099,1738620646003,-3000.0,0.000165,2]
[351546100,1738620646013,-212.234741,0.000165,2]
[351546101,1738620646023,-212.234741,0.000165,2]
[351546102,1738620646033,-306.0,0.000165,2]
[351546103,1738620646042,-153.0,0.000165,2]
[351546104,1738620646052,-3000.0,0.0001651,2]
[351546105,1738620646062,-3000.0,0.0001652,2]
[351546106,1738620646071,-153.0,0.00016526,2]
[351546107,1738620646081,-153.0,0.00016526,2]
[351546108,1738620646091,-153.0,0.00016526,2]
[351546109,1738620646100,-153.0,0.00016526,2]
[351546110,1738620646110,-153.0,0.00016526,2]
[351546111,1738620646119,-153.0,0.00016526,2]
[351546112,1738620646129,-153.0,0.00016526,2]
[351546113,1738620646139,-153.0,0.00016526,2]
[351546114,1738620646148,-153.0,0.00016526,2]
[351546115,1738620646158,-153.0,0.00016526,2]
[351546118,1738620646167,-153.0,0.00016526,2]
[351546121,1738620646177,-153.0,0.00016526,2]
[351546124,1738620646188,-153.0,0.00016526,2]
[351546126,1738620646197,-153.0,0.00016526,2]
[351546128,1738620646207,-153.0,0.00016526,2]
[351546129,1738620646216,-3000.0,0.0001653,2]
[351546130,1738620646226,-151.0,0.0001653,2]
[351546131,1738620646235,-151.0,0.0001653,2]
[351546132,1738620646245,-151.0,0.0001653,2]
[351546133,1738620646254,-158.77965,0.0001653,2]
[351546134,1738620646263,-158.77965,0.0001653,2]
[351546135,1738620646272,-151.0,0.0001653,2]
[351546136,1738620646282,-537.310059,0.0001653,2]
[351546137,1738620646291,-537.310059,0.0001653,2]
[351546138,1738620646301,-663.163948,0.0001653,2]
[351546139,1738620646311,-663.163948,0.0001653,2]
[351546140,1738620646321,-151.0,0.0001653,2]
[351546141,1738620646331,-151.0,0.00016539,2]
[351546142,1738620646341,-1396.72,0.00016539,2]
[351546143,1738620646351,-1396.72,0.00016539,2]
[351546144,1738620646361,-1396.72,0.00016539,2]
[351546145,1738620646370,-1396.72,0.00016539,2]
[351546146,1738620646381,-1396.89517486,0.00016539,2]
[351546147,1738620646390,-3000.0,0.0001654,2]
[351546149,1738620646399,-488.20914429,0.00016544,2]
[351546150,1738620646409,-3463.350649,0.0001655,2]
[351546152,1738620646418,-582.69152287,0.00016573,2]
[351546153,1738620646428,-502.32151229,0.00016573,2]
[351546154,1738620646440,-534.71982995,0.00016573,2]
[351546156,1738620646449,-500.0,0.00016573,2]
[351546157,1738620646458,-500.0,0.00016573,2]
[351546158,1738620646468,-500.0,0.00016573,2]
[351546159,1738620646478,-500.0,0.00016573,2]
[351546160,1738620646487,-500.0,0.00016573,2]
[351546161,1738620646497,-310.89411868,0.00016573,2]
[351546162,1738620646506,-259.95588691,0.00016573,2]
[351546163,1738620646516,-151.0,0.00016573,2]
[351546164,1738620646526,-151.0,0.00016573,2]
[351546165,1738620646535,-180.94287,0.00016573,2]
[351546166,1738620646545,-180.94287,0.00016573,2]
[351546167,1738620646555,-151.0,0.00016573,2]
[351546168,1738620646564,-151.0,0.00016573,2]
[351546169,1738620646574,-151.0,0.00016574,2]
[351546170,1738620646585,-396.713705,0.00016574,2]
[351546171,1738620646596,-396.713705,0.00016574,2]
[351546172,1738620646606,-151.0,0.00016574,2]
[351546173,1738620646616,-151.0,0.00016574,2]
[351546174,1738620646626,-151.0,0.00016574,2]
[351546175,1738620646635,-151.0,0.00016574,2]
[351546176,1738620646646,-151.0,0.00016574,2]
[351546177,1738620646656,-663.163948,0.00016574,2]
[351546178,1738620646665,-663.163948,0.00016574,2]
[351546179,1738620646675,-151.0,0.00016574,2]
[351546180,1738620646688,-151.0,0.00016575,2]
[351546181,1738620646697,-151.0,0.00016575,2]
[351546182,1738620646707,-151.0,0.00016575,2]
[351546183,1738620646717,-151.0,0.00016575,2]
[351546184,1738620646726,-151.0,0.00016575,2]
[351546185,1738620646735,-396.713705,0.00016575,2]
[351546186,1738620646746,-396.713705,0.00016575,2]
[351546187,1738620646755,-211.929989,0.00016575,2]
[351546188,1738620646764,-396.713705,0.00016575,2]
[351546189,1738620646774,-396.713705,0.00016575,2]
[351546190,1738620646783,-500.0,0.00016575,2]
[351546191,1738620646793,-500.0,0.00016575,2]
[351546192,1738620646802,-500.0,0.00016575,2]
[351546193,1738620646811,-500.0,0.00016575,2]
[351546194,1738620646820,-500.0,0.00016575,2]
[351546195,1738620646829,-151.635442,0.00016575,2]
[351546196,1738620646839,-151.635442,0.00016575,2]
[351546197,1738620646849,-512.84225039,0.00016575,2]
[351546198,1738620646858,-500.0,0.00016575,2]
[351546199,1738620646869,-500.0,0.00016575,2]
[351546200,1738620646879,-500.0,0.00016575,2]
[351546201,1738620646888,-154.3508,0.00016575,2]
[351546202,1738620646898,-500.0,0.00016575,2]
[351546203,1738620646908,-496.18771056,0.00016575,2]
[351546204,1738620646918,-151.0,0.00016575,2]
[351546206,1738620646927,-151.0,0.00016575,2]
[351546208,1738620646939,-546.00458312,0.00016575,2]
[351546209,1738620646948,-500.0,0.00016575,2]
[351546211,1738620646958,-500.0,0.00016575,2]
[351546213,1738620646967,-501.55387373,0.00016575,2]
[351546215,1738620646977,-151.0,0.00016575,2]
[351546216,1738620646986,-151.0,0.00016575,2]
[351546218,1738620646995,-151.0,0.00016575,2]
[351546219,1738620647005,-500.0,0.00016575,2]
[351546220,1738620647015,-500.0,0.00016575,2]
[351546221,1738620647025,-500.0,0.00016575,2]
[351546222,1738620647035,-281.696432,0.00016575,2]
[351546223,1738620647045,-500.0,0.00016575,2]
[351546225,1738620647055,-500.0,0.00016575,2]
[351546227,1738620647064,-500.0,0.00016575,2]
[351546228,1738620647073,-507.49108368,0.00016575,2]
[351546230,1738620647083,-453.64,0.00016575,2]
[351546232,1738620647093,-500.0,0.00016575,2]
[351546233,1738620647102,-500.0,0.00016575,2]
[351546234,1738620647112,-500.0,0.00016575,2]
[351546235,1738620647122,-500.0,0.00016575,2]
[351546236,1738620647132,-376.40530418,0.00016575,2]
[351546237,1738620647141,-500.0,0.00016575,2]
[351546238,1738620647151,-151.0,0.00016575,2]
[351546239,1738620647160,-500.0,0.00016575,2]
[351546240,1738620647170,-151.0,0.00016575,2]
[351546242,1738620647268,-151.0,0.00016575,2]
[351546243,1738620647278,-151.0,0.00016575,2]
[351546244,1738620647288,-544.350776,0.00016575,2]
[351546245,1738620647298,-544.350776,0.00016575,2]
[351546246,1738620647308,-544.350776,0.00016575,2]
[351546247,1738620647317,-151.0,0.00016575,2]
[351546248,1738620647327,-296.795859,0.00016575,2]
[351546249,1738620647337,-500.0,0.00016575,2]
[351546250,1738620647346,-544.350776,0.00016575,2]
[351546251,1738620647356,-544.350776,0.00016575,2]
[351546252,1738620647366,-544.350776,0.00016575,2]
[351546253,1738620647375,-500.0,0.00016575,2]
[351546254,1738620647385,-500.0,0.00016575,2]
[351546255,1738620647394,-500.0,0.00016575,2]
[351546256,1738620647405,-500.0,0.00016575,2]
[351546257,1738620647415,-180.94287,0.00016575,2]
[351546259,1738620647424,-180.94287,0.00016575,2]
[351546260,1738620647435,-180.94287,0.00016575,2]
[351546261,1738620647445,-180.94287,0.00016575,2]
[351546262,1738620647454,-180.94287,0.00016575,2]
[351546263,1738620647463,-180.94287,0.00016575,2]
[351546264,1738620647472,-212.234741,0.00016575,2]
[351546265,1738620647482,-212.234741,0.00016575,2]
[351546267,1738620647491,-212.234741,0.00016575,2]
[351546268,1738620647502,-212.234741,0.00016575,2]
[351546269,1738620647512,-212.234741,0.00016575,2]
[351546270,1738620647522,-500.0,0.00016575,2]
[351546271,1738620647532,-212.234741,0.00016575,2]
[351546272,1738620647542,-151.0,0.00016575,2]
[351546273,1738620647552,-151.0,0.00016575,2]
[351546274,1738620647562,-151.0,0.00016575,2]
[351546275,1738620647572,-500.0,0.00016575,2]
[351546276,1738620647582,-500.0,0.00016575,2]
[351546277,1738620647593,-561.81,0.00016575,2]
[351546278,1738620647602,-151.0,0.00016575,2]
[351546279,1738620647612,-500.0,0.00016575,2]
[351546280,1738620647623,-500.0,0.00016575,2]
[351546281,1738620647632,-500.0,0.00016575,2]
[351546282,1738620647642,-500.0,0.00016575,2]
[351546283,1738620647651,-506.2594217,0.00016575,2]
[351546284,1738620647660,-164.772997,0.00016575,2]
[351546285,1738620647671,-164.772997,0.00016575,2]
[351546286,1738620647680,-164.772997,0.00016575,2]
[351546287,1738620647691,-164.772997,0.00016575,2]
[351546288,1738620647701,-500.0,0.00016575,2]
[351546289,1738620647710,-500.0,0.00016575,2]
[351546290,1738620647719,-500.0,0.00016575,2]
[351546291,1738620647729,-500.0,0.00016575,2]
[351546292,1738620647738,-151.0,0.00016575,2]
[351546294,1738620647747,-151.0,0.00016575,2]
[351546295,1738620647756,-500.0,0.00016575,2]
[351546296,1738620647765,-151.0,0.00016575,2]
[351546297,1738620647776,-500.0,0.00016575,2]
[351546298,1738620647786,-500.0,0.00016575,2]
[351546299,1738620647795,-500.0,0.00016575,2]
[351546300,1738620647804,-500.0,0.00016575,2]
[351546301,1738620647813,-501.33843582,0.00016575,2]
[351546302,1738620647822,-500.0,0.00016575,2]
[351546303,1738620647831,-500.0,0.00016575,2]
[351546304,1738620647841,-277.90676,0.00016575,2]
[351546305,1738620647850,-500.0,0.00016575,2]
[351546306,1738620647859,-398.86151837,0.00016575,2]
[351546307,1738620647868,-500.0,0.00016575,2]
[351546308,1738620647878,-500.0,0.00016575,2]
[351546309,1738620647887,-500.0,0.00016575,2]
[351546310,1738620647898,-500.0,0.00016575,2]
[351546311,1738620647907,-500.0,0.00016575,2]
[351546312,1738620647917,-507.16808151,0.00016575,2]
[351546313,1738620647926,-500.0,0.00016575,2]
[351546314,1738620647939,-500.0,0.00016575,2]
[351546315,1738620647949,-500.0,0.00016575,2]
[351546316,1738620647958,-500.0,0.00016575,2]
[351546317,1738620647967,-626.070146,0.00016575,2]
[351546318,1738620647977,-500.0,0.00016575,2]
[351546319,1738620647987,-500.0,0.00016575,2]
[351546320,1738620647996,-500.0,0.00016575,2]
[351546321,1738620648006,-151.0,0.00016575,2]
[351546322,1738620648016,-151.0,0.00016575,2]
[351546323,1738620648025,-151.0,0.00016575,2]
[351546324,1738620648035,-500.0,0.00016575,2]
[351546325,1738620648044,-500.0,0.00016575,2]
[351546326,1738620648054,-500.0,0.00016575,2]
[351546327,1738620648064,-502.62098657,0.00016575,2]
[351546328,1738620648073,-500.0,0.00016575,2]
[351546329,1738620648083,-500.0,0.00016575,2]
[351546330,1738620648093,-274.40048507,0.00016575,2]
[351546331,1738620648103,-500.0,0.00016575,2]
[351546332,1738620648112,-500.0,0.00016575,2]
[351546333,1738620648122,-500.0,0.00016575,2]
[351546334,1738620648132,-500.0,0.00016575,2]
[351546335,1738620648142,-500.0,0.00016575,2]
[351546336,1738620648151,-402.4798391,0.00016575,2]
[351546337,1738620648160,-500.0,0.00016575,2]
[351546338,1738620648170,-500.0,0.00016575,2]
[351546339,1738620648179,-500.0,0.00016575,2]
[351546340,1738620648191,-500.0,0.00016575,2]
[351546341,1738620648200,-500.0,0.00016575,2]
[351546342,1738620648209,-500.0,0.00016575,2]
[351546343,1738620648219,-500.0,0.00016575,2]
[351546344,1738620648228,-500.0,0.00016575,2]
[351546345,1738620648237,-500.0,0.00016575,2]
[351546346,1738620648246,-151.0,0.00016575,2]
[351546347,1738620648256,-151.0,0.00016575,2]
[351546348,1738620648265,-151.0,0.00016575,2]
[351546349,1738620648274,-1063.82659665,0.00016575,2]
[351546350,1738620648283,-500.0,0.00016575,2]
[351546351,1738620648292,-500.0,0.00016575,2]
[351546352,1738620648302,-500.0,0.00016575,2]
[351546353,1738620648311,-500.0,0.00016575,2]
[351546354,1738620648320,-500.0,0.00016575,2]
[351546355,1738620648330,-514.19772155,0.00016575,2]
[351546356,1738620648341,-500.0,0.00016575,2]
[351546357,1738620648351,-541.58924533,0.00016575,2]
[351546358,1738620648360,-500.0,0.00016575,2]
[351546359,1738620648370,-500.0,0.00016575,2]
[351546360,1738620648379,-500.0,0.00016575,2]
[351546361,1738620648390,-502.12315081,0.00016575,2]
[351546362,1738620648400,-296.36707948,0.00016575,2]
[351546363,1738620648410,-500.0,0.00016575,2]
[351546364,1738620648419,-500.0,0.00016575,2]
[351546365,1738620648429,-627.26781212,0.00016575,2]
[351546366,1738620648442,-500.0,0.00016575,2]
[351546367,1738620648451,-500.0,0.00016575,2]
[351546368,1738620648462,-500.0,0.00016575,2]
[351546369,1738620648472,-500.0,0.00016575,2]
[351546370,1738620648482,-500.0,0.00016575,2]
[351546371,1738620648492,-500.0,0.00016575,2]
[351546372,1738620648502,-633.57827246,0.00016575,2]
[351546373,1738620648512,-500.0,0.00016575,2]
[351546374,1738620648521,-578.41149507,0.00016575,2]
[351546375,1738620648531,-500.0,0.00016575,2]
[351546376,1738620648540,-500.0,0.00016575,2]
[351546377,1738620648549,-500.0,0.00016575,2]
[351546378,1738620648559,-500.0,0.00016575,2]
[351546379,1738620648568,-500.0,0.00016575,2]
[351546380,1738620648579,-500.0,0.00016575,2]
[351546381,1738620648590,-500.0,0.00016575,2]
[351546382,1738620648602,-501.76970131,0.00016575,2]
[351546383,1738620648612,-500.0,0.00016575,2]
[351546384,1738620648621,-500.0,0.00016575,2]
[351546385,1738620648631,-500.0,0.00016575,2]
[351546386,1738620648641,-500.0,0.00016575,2]
[351546387,1738620648650,-247.60732869,0.00016575,2]
[351546388,1738620648660,-500.0,0.00016575,2]
[351546389,1738620648673,-500.0,0.00016575,2]
[351546390,1738620648684,-119.70236688,0.00016575,2]
[351546395,1738620649433,-500.0,0.00016438,2]
[351546396,1738620649443,-380.29763312,0.00016575,2]
[351546397,1738620649453,-500.0,0.00016575,2]
[351546398,1738620649463,-500.0,0.00016575,2]
[351546399,1738620649472,-500.68451867,0.00016575,2]
[351546400,1738620649483,-430.92906561,0.00016575,2]
[351546490,1738620713627,197.25446551,0.00014965,2]
[351546678,1738620873859,277.707031,0.00013973,2]
[351547042,1738621151013,290.7942443,0.00014782,2]
[351547509,1738621498234,161.2301025,0.00014752,2]
[351547634,1738621573493,1189.739952,0.00014852,2]
[351547677,1738621604408,24900.0,0.00014906,2]
[351547720,1738621646728,2497.24,0.00013699,2]
[351547721,1738621647045,2497.24,0.00013699,2]
[351547723,1738621647368,2497.24,0.00013699,2]
[351547724,1738621647726,2497.24,0.00013699,2]
[351547726,1738621648177,2497.24,0.00013699,2]
[351547727,1738621648511,2497.24,0.00013699,2]
[351547728,1738621648827,2497.24,0.00013699,2]
[351547729,1738621649148,2497.24,0.00013699,2]
[351547730,1738621649494,2497.24,0.00013699,2]
[351547732,1738621649816,2497.24,0.00013699,2]
[351547734,1738621650214,2497.24,0.00013699,2]
[351547736,1738621650548,2497.24,0.00013699,2]
[351547737,1738621650879,2497.24,0.00013699,2]
[351547738,1738621651256,2497.24,0.00013699,2]
[351547740,1738621651576,2497.24,0.00013699,2]
[351547742,1738621652055,2497.24,0.00013699,2]
[351547756,1738621652394,2497.24,0.00013699,2]
[351547767,1738621652982,2497.24,0.00013699,2]
[351547768,1738621653303,2497.24,0.00013699,2]
[351547769,1738621653638,2497.26003312,0.00013699,2]
[351548029,1738621832198,-219.37619585,0.0001502,2]
[351548030,1738621832214,-166.0,0.00015068,2]
[351548032,1738621832228,-691.0166521,0.00015082,2]
[351548033,1738621832242,-1994.04504204,0.0001512,2]
[351548034,1738621832259,-525.53726378,0.0001512,2]
[351548035,1738621832273,-261.64211952,0.0001512,2]
[351548037,1738621832306,-286.75,0.0001512,2]
[351548038,1738621832322,-509.15,0.0001512,2]
[351548039,1738621832338,-4854.14510346,0.0001512,2]
[351548040,1738621832352,-300.0,0.00015429,2]
[351548042,1738621832365,-2197.43401219,0.0001543,2]
[351548043,1738621832379,-243.47112819,0.00015711,2]
[351548044,1738621832393,-2311.13189863,0.00016,2]
[351548045,1738621832406,-328.97094342,0.000162,2]
[351548046,1738621832425,-380.77554303,0.0001622,2]
[351548047,1738621832437,-108420.78857317,0.000163,2]
[351548060,1738621837887,-861.3832173,0.000163,2]
[351548061,1738621837899,-12939.1197865,0.000163,2]
[351548063,1738621837911,-1020.0,0.000163,2]
[351548064,1738621837924,-5161.78584331,0.000163,2]
[351548065,1738621837946,-37297.69374539,0.000163,2]
[351548066,1738621837993,-63883.91726533,0.000163,2]
[351548067,1738621838011,-233.8645581,0.000163,2]
[351548068,1738621838022,-935.03934155,0.000163,2]
[351548069,1738621838034,-328.97094338,0.00016303,2]
[351548070,1738621838046,-13257.15227901,0.0001632,2]
[351548071,1738621838058,-152.0,0.00016364,2]
[351548072,1738621838069,-328.97094338,0.00016406,2]
[351548073,1738621838081,-500.0,0.00016437,2]
[351548074,1738621838096,-500.0,0.00016437,2]
[351548075,1738621838106,-239.49205721,0.00016437,2]
[351548076,1738621838117,-345.05176143,0.00016437,2]
[351548077,1738621838127,-500.0,0.00016437,2]
[351548078,1738621838136,-500.0,0.00016437,2]
[351548079,1738621838148,-500.0,0.00016437,2]
[351548080,1738621838158,-291.11927993,0.00016437,2]
[351548081,1738621838168,-500.0,0.00016437,2]
[351548082,1738621838179,-500.0,0.00016437,2]
[351548083,1738621838189,-500.0,0.00016437,2]
[351548084,1738621838199,-500.0,0.00016437,2]
[351548085,1738621838210,-500.0,0.00016437,2]
[351548086,1738621838223,-500.0,0.00016437,2]
[351548087,1738621838234,-500.0,0.00016437,2]
[351548088,1738621838245,-500.0,0.00016437,2]
[351548089,1738621838254,-202.11567511,0.00016437,2]
[351548090,1738621838265,-500.0,0.00016437,2]
[351548091,1738621838275,-500.0,0.00016437,2]
[351548092,1738621838284,-500.0,0.00016437,2]
[351548093,1738621838294,-191.32141955,0.00016437,2]
[351548094,1738621838303,-151.0,0.00016438,2]
[351548095,1738621838312,-151.0,0.00016438,2]
[351548096,1738621838322,-151.0,0.00016438,2]
[351548097,1738621838331,-163.976979,0.00016438,2]
[351548098,1738621838341,-163.976979,0.00016438,2]
[351548099,1738621838351,-163.976979,0.00016438,2]
[351548100,1738621838360,-163.976979,0.00016438,2]
[351548101,1738621838370,-500.0,0.00016438,2]
[351548102,1738621838379,-470.43579439,0.00016438,2]
[351548103,1738621838389,-500.0,0.00016438,2]
[351548104,1738621838398,-500.51824012,0.00016438,2]
[351548105,1738621838408,-493.90380827,0.00016438,2]
[351548106,1738621838417,-500.66982686,0.00016438,2]
[351548108,1738621838427,-204.84103073,0.00016438,2]
[351548109,1738621838436,-500.0,0.00016438,2]
[351548110,1738621838446,-543.38615178,0.00016438,2]
[351548111,1738621838455,-500.0,0.00016438,2]
[351548112,1738621838464,-500.0,0.00016438,2]
[351548113,1738621838474,-500.0,0.00016438,2]
[351548114,1738621838484,-500.0,0.00016438,2]
[351548115,1738621838494,-500.0,0.00016438,2]
[351548116,1738621838503,-500.0,0.00016438,2]
[351548117,1738621838513,-406.2360726,0.00016438,2]
[351548118,1738621838522,-196.00246403,0.00016438,2]
[351548119,1738621838531,-500.0,0.00016438,2]
[351548120,1738621838540,-500.0,0.00016438,2]
[351548121,1738621838550,-500.0,0.00016438,2]
[351548122,1738621838559,-500.0,0.00016438,2]
[351548123,1738621838569,-500.0,0.00016438,2]
[351548124,1738621838578,-500.0,0.00016438,2]
[351548125,1738621838587,-500.0,0.00016438,2]
[351548126,1738621838597,-500.0,0.00016438,2]
[351548127,1738621838607,-500.0,0.00016438,2]
[351548128,1738621838616,-501.09031443,0.00016438,2]
[351548129,1738621838625,-500.0,0.00016438,2]
[351548130,1738621838635,-502.58621,0.00016438,2]
[351548131,1738621838644,-500.0,0.00016438,2]
[351548132,1738621838654,-500.0,0.00016438,2]
[351548134,1738621838663,-501.55503743,0.00016438,2]
[351548135,1738621838682,-500.0,0.00016438,2]
[351548136,1738621838696,-500.0,0.00016438,2]
[351548137,1738621838706,-500.0,0.00016438,2]
[351548138,1738621838715,-502.62098657,0.00016438,2]
[351548139,1738621838725,-500.0,0.00016438,2]
[351548140,1738621838735,-500.99647786,0.00016438,2]
[351548141,1738621838745,-500.0,0.00016438,2]
[351548142,1738621838755,-500.0,0.00016438,2]
[351548143,1738621838765,-500.0,0.00016438,2]
[351548144,1738621838775,-500.0,0.00016438,2]
[351548145,1738621838785,-500.0,0.00016438,2]
[351548147,1738621838795,-500.0,0.00016438,2]
[351548148,1738621838805,-500.0,0.00016438,2]
[351548149,1738621838815,-500.0,0.00016438,2]
[351548150,1738621838825,-500.0,0.00016438,2]
[351548151,1738621838834,-500.0,0.00016438,2]
[351548152,1738621838844,-500.0,0.00016438,2]
[351548153,1738621838854,-500.0,0.00016438,2]
[351548154,1738621838865,-503.13950756,0.00016438,2]
[351548155,1738621838875,-501.16203321,0.00016438,2]
[351548156,1738621838884,-504.27728381,0.00016438,2]
[351548157,1738621838894,-500.0,0.00016438,2]
[351548158,1738621838904,-500.0,0.00016438,2]
[351548159,1738621838915,-500.0,0.00016438,2]
[351548160,1738621838925,-500.0,0.00016438,2]
[351548161,1738621838935,-500.0,0.00016438,2]
[351548162,1738621838946,-500.0,0.00016438,2]
[351548163,1738621838956,-500.0,0.00016438,2]
[351548164,1738621838966,-500.0,0.00016438,2]
[351548165,1738621838976,-500.0,0.00016438,2]
[351548166,1738621838986,-500.0,0.00016438,2]
[351548167,1738621838998,-500.0,0.00016438,2]
[351548168,1738621839008,-296.36707948,0.00016438,2]
[351548169,1738621839021,-500.0,0.00016438,2]
[351548170,1738621839030,-500.0,0.00016438,2]
[351548171,1738621839040,-500.0,0.00016438,2]
[351548172,1738621839049,-500.0,0.00016438,2]
[351548173,1738621839061,-1000.0,0.00016438,2]
[351548174,1738621839071,-500.0,0.00016438,2]
[351548175,1738621839080,-507.49108368,0.00016438,2]
[351548176,1738621839093,-500.0,0.00016438,2]
[351548177,1738621839102,-500.0,0.00016438,2]
[351548178,1738621839112,-633.57827246,0.00016438,2]
[351548179,1738621839123,-500.0,0.00016438,2]
[351548180,1738621839132,-500.0,0.00016438,2]
[351548181,1738621839143,-502.12315081,0.00016438,2]
[351548182,1738621839152,-500.0,0.00016438,2]
[351548183,1738621839162,-500.0,0.00016438,2]
[351548184,1738621839172,-500.0,0.00016438,2]
[351548185,1738621839187,-500.0,0.00016438,2]
[351548186,1738621839196,-541.58924533,0.00016438,2]
[351548187,1738621839206,-500.0,0.00016438,2]
[351548188,1738621839218,-500.0,0.00016438,2]
[351548189,1738621839228,-500.0,0.00016438,2]
[351548190,1738621839238,-578.41149507,0.00016438,2]
[351548191,1738621839249,-500.0,0.00016438,2]
[351548192,1738621839259,-500.0,0.00016438,2]
[351548193,1738621839270,-500.0,0.00016438,2]
[351548194,1738621839279,-500.0,0.00016438,2]
[351548195,1738621839289,-500.0,0.00016438,2]
[351548196,1738621839299,-500.0,0.00016438,2]
[351548197,1738621839309,-501.25431881,0.00016438,2]
[351548198,1738621839319,-500.0,0.00016438,2]
[351548199,1738621839329,-500.0,0.00016438,2]
[351548200,1738621839339,-489.41774235,0.00016438,2]
[351548201,1738621839349,-500.0,0.00016438,2]
[351548202,1738621839359,-500.0,0.00016438,2]
[351548203,1738621839370,-502.53148515,0.00016438,2]
[351548204,1738621839380,-500.40648256,0.00016438,2]
[351548205,1738621839390,-500.0,0.00016438,2]
[351548206,1738621839401,-500.0,0.00016438,2]
[351548207,1738621839411,-500.0,0.00016438,2]